[Event "FIDE Zonal 4-2 Open 2023"]
[Site "Dimbroko"]
[Date "2023.03.27"]
[Round "4.12"]
[White "AKA JUSTIN JEAN-ROBERT KOUMI"]
[Black "Amako Marc Arnold"]
[Result "0-1"]
[ECO "B33"]
[WhiteElo "1833"]
[BlackElo "1647"]
[Annotator "NA RC COMBH"]
[PlyCount "74"]
[EventDate "2023.03.25"]
[EventType "swiss"]
[EventCountry "IVO"]
[SourceTitle "playchess.com"]
[Source "ChessBase"]
[SourceQuality "1"]
[TimeControl "40/5400+30:1800+30"]

1. e4 {[%emt 0:00:03]} c5 {[%emt 0:00:05]} 2. Nf3 {[%emt 0:00:11]} Nc6 {[%emt 0:00:06]} 3. d4 {[%emt 0:00:13]} cxd4 {[%emt 0:00:03]} 4. Nxd4 {[%emt 0:00:24]} Nf6 {[%emt 0:00:04]} 5. Nc3 {[%emt 0:01:21]} e5 {[%emt 0:00:07]} 6. Nxc6 {[%emt 0:03:40]} bxc6 {[%emt 0:00:11]} 7. a3 {[%emt 0:08:43] 7.Bd3 is a critical line.} Bc5 {[%emt 0:02:52]} 8. Be2 {[%emt 0:02:23]} O-O {[%emt 0:00:49]} 9. O-O {[%emt 0:00:26]} Rb8 {[%emt 0:01:25] [#]} 10. Rb1 $146 {[%emt 0:06:32]} ({Predecessor:} 10. Na4 Be7 11. f4 d6 12. Nc3 exf4 13. Rxf4 d5 14. exd5 cxd5 15. Kh1 Bd6 16. Ra4 {0-1 Gonzalez Sole,F (1830)-Proskuryakov,M (2127) Alpert Cup pr21 email 2010}) 10... h6 {[%emt 0:00:10]} 11. b4 {[%emt 0:02:00]} Bd4 {[%emt 0:00:23]} 12. Bb2 {[%emt 0:00:35]} Qe7 {[%emt 0:01:56]} 13. Qd3 {[%emt 0:01:42]} d6 {[%emt 0:02:00]} 14. Na4 {[%emt 0:02:50]} Bxb2 {[%emt 0:00:09]} 15. Rxb2 {[%emt 0:04:56]} d5 {[%emt 0:00:18]} 16. exd5 {[%emt 0:10:06]} cxd5 {[%emt 0:00:07]} 17. Rfb1 {[%emt 0:07:10]} Bd7 {[%emt 0:00:40]} 18. Nc5 {[%emt 0:02:11]} Bb5 {[%emt 0:00:30]} 19. Qd2 {[%emt 0:00:47] [#]} a5 {[%emt 0:04:01]} 20. c3 {[%emt 0:05:10]} axb4 {[%emt 0:03:55]} 21. cxb4 {[%emt 0:00:58]} Bxe2 {[%emt 0:01:36]} 22. Qxe2 {[%emt 0:00:29]} e4 {[%emt 0:00:35]} 23. Nb3 {[%emt 0:01:03]} Qa7 {[%emt 0:01:25]} 24. Ra2 {[%emt 0:05:24]} d4 {[%emt 0:00:31]} 25. Rc1 {[%emt 0:02:09]} Rfc8 {[%emt 0:04:02]} 26. Rxc8+ {[%emt 0:01:30]} Rxc8 {[%emt 0:00:12]} 27. Nc5 {[%emt 0:00:33]} Qb6 {[%emt 0:03:25]} 28. h3 {[%emt 0:01:00]} Qd6 {[%emt 0:01:04]} 29. Qa6 {[%emt 0:04:31]} (29. a4 $17) 29... Rc6 {[%emt 0:02:48]} (29... Qxa6 $19 30. Nxa6 Rc1+ 31. Kh2 d3) 30. Qe2 $1 {[%emt 0:01:39]} Qd5 {[%emt 0:04:12]} 31. a4 {[%emt 0:00:41] [#]} (31. Ra1 $17) 31... d3 $1 {[%emt 0:00:08]} 32. Qd2 {[%emt 0:00:50]} Nd7 $2 {[%emt 0:00:03]} (32... Rxc5 $19 33. bxc5 e3 34. fxe3 (34. Qxe3 $2 {loses.} Qxa2 35. Qxd3 Qxa4 $19) 34... Ne4) 33. Nxd7 {[%emt 0:01:17]} Qxd7 {[%emt 1:07:08]} (33... Rg6 $5 {[%cal Rg6g2]} 34. Qe3 (34. Nc5 $2 Rxg2+ 35. Kf1 Rh2 $19) 34... Rd6 $11) 34. a5 $2 {[%emt 0:24:03]} (34. b5 $17 Rg6 35. Qe3) 34... Qc7 {[%emt 0:00:00]} 35. Ra1 {[%emt 0:00:00]} Rc2 {[%emt 0:00:00]} 36. a6 {[%emt 0:00:00]} (36. Qe3 $19 Qc3 37. Rd1 Qxb4 38. Qb6 Qxb6 39. axb6) 36... Rxd2 {[%emt 0:00:00]} 37. a7 {[%emt 0:00:00] [#]} Rd1+ $3 {[%emt 0:02:00]} 0-1

[Event "FIDE Zonal 4-2 Open 2023"]
[Site "Dimbroko"]
[Date "2023.03.27"]
[Round "5.1"]
[White "Ortega Amarelle, Mariano"]
[Black "Abdulraheem Abdulrahman Akinto"]
[Result "1-0"]
[ECO "D07"]
[WhiteElo "2472"]
[BlackElo "2302"]
[Annotator "TA"]
[PlyCount "91"]
[EventDate "2023.03.25"]
[EventType "swiss"]
[EventCountry "IVO"]
[SourceTitle "playchess.com"]
[Source "ChessBase"]
[SourceQuality "1"]
[TimeControl "40/5400+30:1800+30"]

{[%evp 12,91,44,36,77,54,58,65,74,40,48,48,53,45,66,68,66,66,65,58,64,56,56,62,57,56,73,67,79,74,89,66,87,82,90,86,89,79,96,74,70,58,120,123,122,66,130,131,131,95,114,110,94,58,98,106,100,105,201,191,264,193,562,547,565,544,450,208,1861,299,1883,1831,1781,1720,5138,5114,5097,5093,29974,29956,29975,29976]} 1. d4 {[%emt 0:00:30]} d5 {[%emt 0:00:10]} 2. c4 {[%emt 0:00:27]} Nc6 {[%emt 0:01:21]} 3. cxd5 {[%emt 0:01:47]} Qxd5 {[%emt 0:00:35]} 4. e3 {[%emt 0:00:45]} e5 {[%emt 0:01:31]} 5. Nc3 {[%emt 0:00:12]} Bb4 {[%emt 0:00:26]} 6. a3 {[%emt 0:01:04]} Bxc3+ {[%emt 0:00:59]} 7. bxc3 {[%emt 0:00:06]} exd4 {[%emt 0:03:27] D07: Queen's Gambit: Chigorin Defence.} 8. cxd4 {[%emt 0:03:30]} Nf6 {[%emt 0:03:26]} 9. Ne2 {[%emt 0:10:33]} Ne4 {[%emt 0:11:01] Repels Nc3. White is slightly better.} 10. Nf4 {[%emt 0:02:57]} (10. Qa4 {simplifies} Qa5+ 11. Qxa5 Nxa5 12. Nf4) 10... Qa5+ {[%emt 0:03:08]} 11. Bd2 {[%emt 0:00:08]} Nxd2 {[%emt 0:00:46]} 12. Qxd2 {[%emt 0:00:07] [#]} O-O $146 {[%emt 0:02:40]} ({Predecessor:} 12... Bd7 13. Bc4 O-O 14. Rb1 b6 15. Bd5 Rac8 16. Rc1 Qxd2+ 17. Kxd2 Na5 18. Rc3 c6 {½-½ Andersen,S (2159)-Klauner,T (2032) EU-Cup 34th Porto Carras 2018 (3.4)}) 13. Qxa5 {[%emt 0:01:13]} Nxa5 {[%emt 0:00:03]} 14. Rc1 {[%emt 0:00:21]} c6 {[%emt 0:02:46]} 15. Bd3 {[%emt 0:01:02] Black is weak on the dark squares} Rd8 {[%emt 0:01:47]} 16. O-O {[%emt 0:01:54]} Rd6 {[%emt 0:00:43]} 17. h4 {[%emt 0:04:42]} Bd7 {[%emt 0:00:39]} 18. Rc3 {[%emt 0:00:13]} Rd8 {[%emt 0:02:47]} 19. f3 {[%emt 0:05:49]} g6 {[%emt 0:01:23]} 20. g4 {[%emt 0:00:25][%cal Bg2g4,Bg4g5][%mdl 32]} Kg7 {[%emt 0:01:46]} 21. Kf2 {[%emt 0:00:14]} Be8 {[%emt 0:02:41]} 22. g5 {[%emt 0:05:29]} h6 {[%emt 0:02:51]} 23. Rg1 {[%emt 0:33:38]} b6 {[%emt 0:00:30]} 24. Be4 {[%emt 0:00:30]} Bd7 {[%emt 0:00:30]} 25. Nd3 {[%emt 0:00:30]} hxg5 {[%emt 0:00:30]} 26. hxg5 {[%emt 0:00:30]} ({Weaker is} 26. Rxg5 f5 27. Nf4 fxe4 $17) 26... Rh8 {[%emt 0:00:30]} (26... Bf5 $14) 27. Ne5 $16 {[%emt 0:00:30]} Rh2+ {[%emt 0:00:30] [#]} 28. Rg2 {[%emt 0:00:30]} ({Better is} 28. Kg3 $1 $16 {[%cal Rg3h2]} Rh5 29. f4) 28... Rxg2+ {[%emt 0:00:30]} (28... Rh8 $14) 29. Kxg2 Be8 30. Ng4 {[%emt 0:01:00]} Rd8 {[%emt 0:40:45]} 31. Nf6 {[%emt 0:00:30]} Kf8 32. f4 {[%emt 0:16:30] White is much more active.} Ke7 {[%emt 0:02:06]} 33. f5 {[%emt 0:01:15]} gxf5 {[%emt 0:01:20]} 34. Bxf5 {[%emt 0:00:02]} Kd6 {[%emt 0:04:51]} (34... c5 $16) 35. Kg3 {[%emt 0:04:05]} Nb7 {[%emt 0:00:39]} (35... b5 $142 36. Rc5 Ke7) 36. e4 {[%emt 0:01:51][%cal Be3e4,Be4e5][%mdl 32] e5+ would be deadly.} Na5 $2 {[%emt 0:04:40]} (36... Ke7 {is more resistant.}) 37. Kf4 $18 {[%emt 0:00:14]} Ke7 {[%emt 0:01:17] [#]} 38. d5 {[%emt 0:03:19]} cxd5 {[%emt 0:02:15]} 39. Nxd5+ {[%emt 0:00:15]} (39. exd5 $142 Kf8 40. Rc7) 39... Kd6 $2 {[%emt 0:01:31]} (39... Kf8 40. Rc7 a6 41. Nxb6 Nc6) 40. e5+ {[%emt 0:00:13]} ({Less strong is} 40. Rc7 Nc6 $14) 40... Kxd5 {[%emt 0:00:13]} 41. Rd3+ {[%emt 0:30:06][%mdl 64] Skewer} Kc5 {[%emt 0:02:41]} 42. Rxd8 {[%emt 0:00:00]} Ba4 {[%emt 0:01:26]} 43. e6 {[%emt 0:00:00]} fxe6 {[%emt 0:00:11]} 44. Bxe6 {[%emt 0:00:00] White wants to mate with g6.} Nc6 {[%emt 0:00:22]} 45. Rd5+ {[%emt 0:00:00]} Kc4 {[%emt 0:00:43]} 46. Ra5+ {[%emt 0:04:34] Weighted Error Value: White=0.22 (precise) /Black=0.48} 1-0

[Event "FIDE Zonal 4-2 Open 2023"]
[Site "Dimbroko"]
[Date "2023.03.27"]
[Round "5.2"]
[White "Nean, Franck Anderson"]
[Black "Barcon, Harmon"]
[Result "1-0"]
[ECO "D46"]
[WhiteElo "1851"]
[BlackElo "1928"]
[Annotator "TA"]
[PlyCount "78"]
[EventDate "2023.03.25"]
[EventType "swiss"]
[EventCountry "IVO"]
[SourceTitle "playchess.com"]
[Source "ChessBase"]
[SourceQuality "1"]
[TimeControl "40/5400+30:1800+30"]

{[%evp 24,78,41,42,35,26,42,29,48,21,47,0,0,-6,-2,-8,-3,-7,0,0,0,0,0,0,322,345,333,335,502,259,418,409,385,403,479,198,199,184,195,181,155,150,150,144,184,165,195,150,301,207,257,256,325,322,266,229,222]} 1. d4 {[%emt 0:00:04]} d5 {[%emt 0:00:07]} 2. Nf3 {[%emt 0:00:16]} Nf6 {[%emt 0:00:03]} 3. c4 {[%emt 0:00:47]} c6 {[%emt 0:00:07]} 4. Nc3 {[%emt 0:00:28]} e6 {[%emt 0:00:40]} 5. e3 {[%emt 0:00:39]} Bd6 {[%emt 0:00:33]} 6. Bd3 {[%emt 0:00:50]} Nbd7 {[%emt 0:00:13]} 7. e4 {[%emt 0:01:28]} dxe4 {[%emt 0:00:03]} 8. Nxe4 {[%emt 0:00:06]} Nxe4 {[%emt 0:00:15]} 9. Bxe4 {[%emt 0:00:04]} Nf6 {[%emt 0:00:29]} 10. Bc2 {[%emt 0:00:11]} Bb4+ {[%emt 0:01:44]} 11. Bd2 {[%emt 0:02:15]} Bxd2+ {[%emt 0:00:03]} 12. Qxd2 {[%emt 0:00:04]} O-O {[%emt 0:00:29]} 13. O-O {[%emt 0:00:15]} Qc7 {[%emt 0:00:13] D46: Semi-Slav: 5 e3 Nbd7 6 Bd3, Black avoids the Meran.} 14. Rad1 {[%emt 0:02:16]} b6 {[%emt 0:00:57]} 15. Rfe1 {[%emt 0:01:01] [#]} Rd8 $146 {[%emt 0:00:08] White has an edge.} ({Predecessor:} 15... Bb7 16. c5 Rfd8 17. Qc3 Nd5 18. Qa3 Qe7 19. Nd2 Nc7 20. Nc4 Nb5 21. Qe3 Qf6 {1-0 Muradli,M (2552)-Sukandar,I (2373) Abu Dhabi Masters 28th 2022 (8)}) 16. Qg5 {[%emt 0:00:38]} h6 {[%emt 0:00:45]} 17. Qh4 {[%emt 0:00:14]} (17. Qe5 $14 {was preferrable.} Qe7 18. Qe3) 17... Bb7 $11 {[%emt 0:00:52]} 18. b3 {[%emt 0:11:40]} c5 {[%emt 0:01:11]} 19. Ne5 {[%emt 0:07:06]} cxd4 {[%emt 0:01:26]} 20. Rxd4 {[%emt 0:01:24]} Rxd4 {[%emt 0:00:13]} 21. Qxd4 {[%emt 0:00:16]} Rd8 {[%emt 0:00:22]} 22. Qe3 {[%emt 0:01:21]} Qe7 {[%emt 0:02:47]} 23. h3 {[%emt 0:02:03]} Qa3 $2 {[%emt 0:00:34][%mdl 8192] [#]} (23... Nd7 $11 {and Black is okay.}) 24. Nxf7 $1 $18 {[%emt 0:12:30][%mdl 576] Discovered Attack} Re8 {[%emt 0:02:49]} 25. Bg6 {[%emt 0:05:43][%cal Of7h6] Strongly threatening Nxh6+!} Re7 {[%emt 0:03:55]} (25... Qe7 $142 26. Nxh6+ gxh6) 26. Nd8 {[%emt 0:09:58] Hoping for Nxb7.} Bc8 {[%emt 0:03:24] Black is weak on the light squares} (26... Qd6) 27. Nc6 Rc7 {[%emt 0:00:30] [#]} 28. Rd1 $1 Bd7 {[%emt 0:00:30]} (28... Rd7 29. Qxe6+) 29. Nb8 (29. Ne5 $142) 29... Qe7 {[%emt 0:00:30]} 30. Nxd7 $40 {[%mdl 128] Black is in trouble.} Rxd7 {[%emt 0:00:30]} 31. Rxd7 Nxd7 {[%emt 0:00:30][%mdl 4096] Endgame KQB-KQN} 32. Qe4 {White is much more active.} Nf8 {[%emt 0:00:30]} 33. Bh5 Qd6 {[%emt 0:00:30]} 34. Bg4 Qe7 {[%emt 0:00:30]} 35. Qe5 Qd7 $2 {[%emt 0:00:30] Loses the game.} (35... g6 $16 {keeps fighting.} 36. g3 h5) 36. a3 Kf7 {[%emt 0:00:30]} 37. b4 g6 {[%emt 0:00:30]} 38. c5 ({But not} 38. Qf4+ Ke7 39. Bf3 Qd6 40. Qxh6 Qe5) 38... bxc5 {[%emt 0:00:30]} 39. Qxc5 Qe7 {[%emt 0:00:30] Weighted Error Value: White=0.35/Black=0.54} 1-0

[Event "FIDE Zonal 4-2 Open 2023"]
[Site "Dimbroko"]
[Date "2023.03.27"]
[Round "5.3"]
[White "Kennedy Zinnah Kengo"]
[Black "Thomas, Saah"]
[Result "0-1"]
[ECO "B22"]
[WhiteElo "1785"]
[BlackElo "1916"]
[Annotator "TA"]
[PlyCount "58"]
[EventDate "2023.03.25"]
[EventType "swiss"]
[EventCountry "IVO"]
[SourceTitle "playchess.com"]
[Source "ChessBase"]
[SourceQuality "1"]
[TimeControl "40/5400+30:1800+30"]

{[%evp 13,58,37,54,35,35,-4,0,0,42,18,50,35,48,0,-2,-47,-23,-71,-81,-116,-107,-152,-143,-154,-152,-483,-151,-119,-12,0,158,0,0,-96,-95,-29989,-29990,-29991,-29992,-29992,-1349,-29993,-29994,-29995,-29981,-29998,-29999]} 1. e4 {[%emt 0:00:04]} c5 {[%emt 0:00:02]} 2. Nf3 {[%emt 0:00:16]} Nc6 {[%emt 0:00:10]} 3. c3 {[%emt 0:00:33]} g6 {[%emt 0:02:34]} 4. d4 {[%emt 0:00:28]} cxd4 {[%emt 0:00:09]} 5. cxd4 {[%emt 0:00:10]} Bg7 {[%emt 0:00:06]} 6. Nc3 {[%emt 0:00:29]} d6 {[%emt 0:00:17]} 7. h3 {[%emt 0:00:50]} Nf6 {[%emt 0:00:23]} 8. Bb5 {[%emt 0:00:30] Strongly threatening d5. B22: Sicilian: 2 c3.} a6 {[%emt 0:00:09]} 9. Ba4 {[%emt 0:00:11]} b5 {[%emt 0:00:14]} 10. Bc2 {[%emt 0:00:06] [#] The position is equal.} Nb4 $146 {[%emt 0:00:36]} ({Predecessor:} 10... O-O 11. O-O Bb7 12. d5 Ne5 13. Nxe5 dxe5 14. Bg5 Rc8 15. Re1 Qd7 16. Rc1 Rfd8 {0-1 Gomez Diaz,R (1346)-Garcia Amelibia,E (1578) ESP-ch U12 Salobrena 2022 (2)}) 11. Bb1 {[%emt 0:00:15]} O-O {[%emt 0:03:11]} 12. d5 {[%emt 0:00:46]} a5 $1 {[%emt 0:01:57]} 13. a3 {[%emt 0:00:31]} (13. Be3 $14) 13... Na6 $11 {[%emt 0:00:07]} 14. Nxb5 {[%emt 0:00:15]} Nc5 {[%emt 0:00:20]} 15. Nc3 {[%emt 0:00:33]} (15. O-O $11 {was preferrable.}) 15... Ba6 $17 {[%emt 0:00:56]} 16. Be3 {[%emt 0:00:19]} Nfd7 {[%emt 0:00:21] White must now prevent ...Qb8.} 17. Bc2 {[%emt 0:00:50]} Rb8 {[%emt 0:00:31]} 18. Rb1 {[%emt 0:00:19]} Rxb2 $1 {[%emt 0:00:23][%mdl 64] Remove Defender, Decoy. Black is more active.} 19. Na4 {[%emt 0:00:50] [#]} (19. Ne2 $17 {is a better chance.}) 19... Rxc2 $2 {[%emt 0:01:44]} 20. Qxc2 {[%emt 0:00:46][%cal Ra4c5]} Nxa4 {[%emt 0:04:02]} ({Black should try} 20... Bd3 $17 21. Qd1 Bxe4 22. Nxc5 Nxc5) 21. Qxa4 $11 {[%emt 0:00:21]} Bc3+ {[%emt 0:00:08] A strong pair of Bishops.} (21... Nc5 $1 $11 22. Bxc5 dxc5) 22. Nd2 $2 {[%emt 0:00:43]} (22. Kd1 $16) 22... Ne5 {[%emt 0:00:23] Prevents Qc6. ...Qa8 is the strong threat.} 23. Qc2 {[%emt 0:02:10] [#]} (23. Kd1 $11 {keeps the balance.}) 23... Qc7 $1 $17 {[%emt 0:01:09][%mdl 1024] Threatens to win with ...Qc4. Black has strong compensation.} 24. Bd4 $2 {[%emt 0:02:20][%mdl 8192] [#]} (24. Rb6 $17 Bd3 25. Qc1) 24... Qc4 $1 {[%emt 0:00:34][%csl Ga6][%cal Rc4e2][%mdl 64] Double Attack} 25. Kd1 {[%emt 0:00:59]} (25. Rb5 Bxb5) 25... Qe2+ {[%emt 0:00:08]} 26. Kc1 {[%emt 0:01:36]} Nd3+ {[%emt 0:00:10]} 27. Qxd3 {[%emt 0:00:16]} Qxd3 {[%emt 0:00:06][%csl Gc3][%cal Rd3d2] Black mates.} 28. Bxc3 {[%emt 0:00:39]} Rc8 {[%emt 0:00:07]} 29. Rb2 {[%emt 0:01:29]} Rxc3+ {[%emt 0:00:32] A superb game by Thomas.   Weighted Error Value: White=0.76/Black=0.42} 0-1

[Event "FIDE Zonal 4-2 Open 2023"]
[Site "Dimbroko"]
[Date "2023.03.27"]
[Round "5.4"]
[White "Ble, Kouko Hubert"]
[Black "Egbe, Kossi Thierry"]
[Result "1-0"]
[ECO "A34"]
[WhiteElo "1825"]
[BlackElo "1740"]
[Annotator "NA RC COMBH"]
[PlyCount "44"]
[EventDate "2023.03.25"]
[EventType "swiss"]
[EventCountry "IVO"]
[SourceTitle "playchess.com"]
[Source "ChessBase"]
[SourceQuality "1"]
[TimeControl "40/5400+30:1800+30"]

1. Nf3 {[%emt 0:00:09]} c5 {[%emt 0:00:42]} 2. c4 {[%emt 0:00:10]} Nf6 {[%emt 0:00:18]} 3. Nc3 {[%emt 0:00:53]} Nc6 {[%emt 0:00:44]} 4. e3 {[%emt 0:00:48]} d6 {[%emt 0:03:27]} 5. d4 {[%emt 0:01:02]} Bg4 {[%emt 0:00:15]} 6. Be2 {[%emt 0:00:18]} g6 {[%emt 0:01:43]} 7. O-O {[%emt 0:01:13]} Bg7 {[%emt 0:00:26]} 8. h3 {[%emt 0:04:21]} Bf5 {[%emt 0:03:59]} 9. Bd3 {[%emt 0:07:01]} O-O {[%emt 0:02:48]} 10. Bxf5 {[%emt 0:00:32]} gxf5 {[%emt 0:00:12]} 11. Qd3 {[%emt 0:12:17]} e6 {[%emt 0:01:20]} 12. Rd1 {[%emt 0:00:24]} cxd4 {[%emt 0:03:32]} 13. exd4 {[%emt 0:00:27]} Nd7 {[%emt 0:03:43]} 14. Bf4 {[%emt 0:01:08]} Qe7 {[%emt 0:00:45]} 15. Re1 {[%emt 0:04:22]} a6 {[%emt 0:03:50]} 16. Rad1 {[%emt 0:00:53]} Rad8 {[%emt 0:03:26]} 17. Nd5 {[%emt 0:05:34]} Qe8 {[%emt 0:03:45]} 18. Bxd6 {[%emt 0:00:02]} Nde5 {[%emt 0:02:06]} 19. dxe5 {[%emt 0:01:55]} exd5 {[%emt 0:00:54]} 20. cxd5 {[%emt 0:00:24]} Ne7 {[%emt 0:02:13]} 21. Bxe7 {[%emt 0:01:44]} Qxe7 {[%emt 0:00:55]} 22. Qxf5 {[%emt 0:00:04]} h6 {[%emt 0:01:26]} 1-0

[Event "FIDE Zonal 4-2 Open 2023"]
[Site "Dimbroko"]
[Date "2023.03.27"]
[Round "5.5"]
[White "Cogan, Nicolas"]
[Black "Bobby Ballah"]
[Result "1-0"]
[ECO "E48"]
[WhiteElo "2013"]
[BlackElo "1914"]
[Annotator "TA"]
[PlyCount "71"]
[EventDate "2023.03.25"]
[EventType "swiss"]
[EventCountry "IVO"]
[SourceTitle "playchess.com"]
[Source "ChessBase"]
[SourceQuality "1"]
[TimeControl "40/5400+30:1800+30"]

{[%evp 20,71,20,15,18,10,20,20,23,16,20,18,29,17,16,4,6,11,51,60,65,59,113,75,84,77,70,69,77,28,57,7,10,4,32,27,20,14,69,0,519,535,668,637,635,480,490,484,1208,1204,1183,1158,1323,1264]} 1. d4 {[%emt 0:00:05]} Nf6 {[%emt 0:00:20]} 2. c4 {[%emt 0:00:06]} e6 {[%emt 0:00:08]} 3. Nc3 {[%emt 0:00:05]} Bb4 {[%emt 0:00:44]} 4. e3 {[%emt 0:00:06]} O-O {[%emt 0:00:32]} 5. Bd3 {[%emt 0:00:15]} c5 {[%emt 0:01:20]} 6. Nge2 {[%emt 0:00:50]} Nc6 {[%emt 0:03:06]} 7. O-O {[%emt 0:01:05]} d5 {[%emt 0:02:02]} 8. cxd5 {[%emt 0:01:06]} exd5 {[%emt 0:00:34]} 9. a3 {[%emt 0:01:17]} cxd4 {[%emt 0:00:44]} 10. exd4 {[%emt 0:02:20]} Bd6 {[%emt 0:00:09]} 11. h3 {[%emt 0:02:32]} h6 {[%emt 0:00:57] E48: Nimzo-Indian: Rubinstein: 5 Bd3 d5 including 6 Ne2, but excluding 6 a3.} 12. Be3 {[%emt 0:02:10] [#]} a6 $146 {[%emt 0:01:03]} ({Predecessor:} 12... Re8 13. Rc1 a6 14. Bb1 Bf8 15. Nf4 Ne7 16. Qf3 Qd6 17. Ba2 Rd8 18. Nd3 g5 19. Ne5 {0-1 Pacher,M (2442)-Lewtak,D (2380) Lvov Vasylyshyn Memorial 16th 2019 (7)}) 13. Ng3 {[%emt 0:17:08]} Re8 {[%emt 0:10:38] Strongly threatening ...Bxg3. The position is equal.} 14. Qf3 {[%emt 0:03:28]} Be6 {[%emt 0:09:54]} (14... Bc7 {with more complications.} 15. Rfe1 Qd6 16. Bxh6 Bg4) 15. b4 {[%emt 0:15:30]} Nh7 {[%emt 0:06:52]} 16. Nf5 {[%emt 0:46:20]} (16. Nxd5 $2 {is the wrong capture.} Bxd5 17. Qxd5 Bxg3 $19) 16... Bf8 {[%emt 0:00:30]} 17. Qg3 {[%emt 0:00:30]} (17. Rfd1 {simplifies} a5 18. b5 Ne7 19. Nxe7+ Bxe7 20. Bxh7+ Kxh7 21. Na4) 17... Bxf5 {[%emt 0:00:30]} 18. Bxf5 {[%emt 0:00:30]} Bd6 {[%emt 0:00:30]} 19. Bxh7+ {[%emt 0:00:30]} Kxh7 {[%emt 0:00:30]} 20. Qf3 Qh4 {[%emt 0:00:30]} (20... Bb8 $14) 21. Rad1 {[%emt 0:01:00]} Kg8 {[%emt 0:34:31]} 22. Nxd5 {[%emt 0:00:25]} Rad8 {[%emt 0:00:21]} 23. Nc3 {[%emt 0:02:02]} Bb8 {[%emt 0:00:48]} 24. d5 {[%emt 0:02:12]} ({Better is} 24. b5 $16 Na5 25. bxa6) 24... Ne5 $11 {[%emt 0:01:08]} 25. Qf5 {[%emt 0:00:51]} (25. Qf4 $14 Qxf4 26. Bxf4) 25... Nc4 {[%emt 0:06:42][%csl LRa3,LRe3]} 26. Bd4 {[%emt 0:00:34]} ({Much weaker is} 26. Rd4 Nxe3 27. fxe3 Qg3 $17) 26... Be5 {[%emt 0:04:06]} 27. Bxe5 {[%emt 0:00:31]} (27. g3 $5 {[%cal Rg3h4]} Qg5 28. Qxg5 hxg5 29. Bxe5 Rxe5 30. a4 $14) 27... Rxe5 {[%emt 0:00:46]} 28. Qf3 {[%emt 0:00:02][%cal Od5d6]} Rd6 {[%emt 0:05:49]} ({Black should play} 28... b5 $11) 29. Ne2 {[%emt 0:00:55]} (29. Rfe1 $14) 29... Rg5 $2 {[%emt 0:03:21][%mdl 8192]} (29... Rf6 $11 30. Qg3 Qxg3 31. Nxg3 Rd6) 30. Rd4 $18 {[%emt 0:00:26] White is clearly winning.} Ne5 {[%emt 0:00:10]} 31. Qe3 {[%emt 0:00:36]} Qh5 {[%emt 0:02:00]} 32. Nf4 {[%emt 0:00:24]} Qf3 {[%emt 0:01:50] [#]} 33. Qxe5 {[%emt 0:00:31][%mdl 512]} Rdg6 {[%emt 0:00:06] [#]} (33... Rxe5 $142 34. gxf3 Rg5+ 35. Kh2 Rf5) (33... Qxg2+ 34. Nxg2) 34. Qxg5 $3 {[%emt 0:00:36]} Rxg5 {[%emt 0:00:13]} 35. d6 {[%emt 0:00:24]} Qc3 {[%emt 0:02:36]} 36. Rfd1 {[%emt 0:00:00] Beautiful play by Cogan!   Weighted Error Value: White=0.21 (precise) /Black=0.45} 1-0